bitfinex/quotes_SOLUSD_20241125
["timestamp","ask_amount","ask_price","bid_price","bid_amount"]
[1732564153622,20.0,240.13,240.08,8.73690083]
[1732564153819,20.0,240.13,240.07,8.73690083]
[1732564154426,20.0,240.13,240.07,13.99885839]
[1732564155048,22.3835,240.16,240.07,13.99885839]
[1732564155422,16.2055,240.16,240.09,13.99885839]
[1732564156741,16.2055,240.16,240.1,13.99885839]
[1732564157139,16.2055,240.16,240.08,13.99885839]
[1732564157750,20.0,240.13,240.04,13.99885839]
[1732564158048,20.0,240.13,240.05,23.776884]
[1732564158631,20.0,240.13,240.01,13.99885839]
[1732564159376,26.513,240.12,239.97,13.99885839]
[1732564159550,20.0,240.1,239.97,13.99885839]
[1732564159871,20.0,240.09,239.99,13.99885839]
[1732564161045,20.0,240.09,240.01,13.99885839]
[1732564161250,20.0,240.09,240.02,23.776884]
[1732564162234,20.0,240.09,240.03,13.99885839]
[1732564162749,20.0,240.09,240.02,23.776884]
[1732564162950,20.0,240.09,239.98,23.776884]
[1732564165637,15.5075,240.08,239.98,23.776884]
[1732564165937,20.0,240.05,239.99,13.99885839]
[1732564168848,15.5075,240.08,240.04,13.99885839]
[1732564170161,20.0,240.14,240.04,13.99885839]
[1732564170534,20.0,240.14,240.08,13.99885839]
[1732564170982,20.0,240.14,240.06,13.99885839]
[1732564171152,20.0,240.14,240.02,37.77574239]
[1732564171341,70.0,240.12,239.98,13.99885839]
[1732564171549,20.0,240.09,239.98,13.99885839]
[1732564173063,15.1227,240.08,239.99,23.776884]
[1732564173236,20.0,240.05,239.99,23.776884]
[1732564173438,20.0,240.05,240.01,23.776884]
[1732564174028,15.1227,240.08,240.02,13.99885839]
[1732564174165,149.6227,240.14,240.04,13.99885839]
[1732564174454,15.1227,240.14,240.05,23.776884]
[1732564175436,20.0,240.11,240.05,23.776884]
[1732564179756,20.0,240.11,240.04,13.99885839]
[1732564180646,20.0,240.1,239.99,13.99885839]
[1732564180862,20.0,240.08,239.99,13.99885839]
[1732564181254,20.0,240.08,239.97,13.99885839]
[1732564183763,20.0,240.08,239.99,13.99885839]
[1732564184304,20.0,240.08,239.96,23.776884]
[1732564184563,20.0,240.1,239.99,8.75563277]
[1732564184770,160.68744292,240.22,240.09,8.75563277]
[1732564184949,36.18744292,240.22,240.09,8.75563277]
[1732564185258,26.18744292,240.22,240.07,8.75563277]
[1732564185465,26.18744292,240.22,240.09,8.75563277]
[1732564186151,20.0,240.17,240.05,8.75563277]
[1732564186345,20.0,240.17,240.08,13.99860704]
[1732564186664,20.0,240.18,240.06,13.99860704]
[1732564187041,20.0,240.18,240.07,23.776884]
[1732564188154,20.0,240.18,240.06,13.99860704]
[1732564188346,20.0,240.17,240.06,13.99860704]
[1732564190945,20.0,240.17,240.08,13.99860704]
[1732564192762,36.18744292,240.22,240.1,13.99860704]
[1732564192763,20.0,240.19,240.1,13.99860704]
[1732564192943,20.0,240.19,240.12,13.99860704]
[1732564193141,20.0,240.19,240.1,13.99860704]
[1732564194171,20.0,240.19,240.08,13.99860704]
[1732564194486,20.0,240.18,240.07,23.776884]
[1732564196578,20.0,240.18,240.08,13.99860704]
[1732564198275,20.0,240.18,240.07,23.776884]
[1732564198455,90.0,240.18,240.04,13.99860704]
[1732564198657,20.0,240.17,240.04,13.99860704]
[1732564198858,20.0,240.15,240.04,13.99860704]
[1732564200753,20.0,240.17,240.08,13.99860704]
[1732564201080,20.0,240.15,240.04,13.99860704]
[1732564201516,20.0,240.15,239.95,8.19788054]
[1732564201517,20.0,240.11,240.0,13.99860704]
[1732564201776,20.0,240.11,239.98,13.99860704]
[1732564203183,20.0,240.11,239.99,23.776884]
[1732564203476,90.0,240.11,239.98,13.99860704]
[1732564204188,90.0,240.11,240.0,13.99860704]
[1732564204678,90.0,240.11,239.98,13.99860704]
[1732564205667,70.0,240.04,239.9,4.1683]
[1732564205881,70.0,240.04,239.86,26.9263]
[1732564205882,20.0,239.99,239.86,13.99860704]
[1732564206070,20.0,239.97,239.86,13.99860704]
[1732564206384,20.0,239.97,239.87,8.76417462]
[1732564206571,20.0,239.97,239.85,8.76417462]
[1732564207567,20.0,239.97,239.89,8.76417462]
[1732564207769,20.0,239.97,239.91,8.76417462]
[1732564208366,30.0,239.94,239.91,8.76417462]
[1732564208775,30.0,239.94,239.82,23.776884]
[1732564208776,30.0,239.94,239.87,8.76417462]
[1732564208987,20.0,239.91,239.85,8.76417462]
[1732564209280,20.0,239.91,239.83,8.76417462]
[1732564209477,30.0,239.89,239.83,8.76417462]
[1732564210483,30.0,239.89,239.83,14.027527]
[1732564210894,30.0,239.89,239.76,14.027527]
[1732564210895,20.0,239.86,239.81,14.027527]
[1732564211188,30.0,239.85,239.79,14.027527]
[1732564211684,30.0,239.85,239.83,14.027527]
[1732564212179,30.0,239.85,239.84,24.2533522]
[1732564212367,30.0,239.85,239.84,38.2808792]
[1732564212695,30.0,239.85,239.84,38.5318592]
[1732564212988,15.0113,240.02,239.86,23.776884]
[1732564213287,15.0113,240.02,239.93,14.027527]
[1732564213460,15.0113,240.02,239.95,14.027527]
[1732564214162,70.0,240.08,239.97,14.027527]
[1732564214578,15.0113,240.1,239.99,14.027527]
[1732564214767,15.0113,240.1,240.02,14.027527]
[1732564214984,15.96477347,240.1,240.02,14.027527]
[1732564216312,15.96477347,240.1,239.94,27.944484]
[1732564216313,0.95347347,240.1,240.06,14.027527]
[1732564216780,15.0113,240.15,240.08,14.027527]
[1732564217092,15.0113,240.15,240.1,14.027527]
[1732564217308,15.0012,240.21,240.11,14.027527]
[1732564217638,8.00782064,240.19,240.11,14.027527]
[1732564218309,8.00782064,240.19,240.13,14.027527]
[1732564218475,8.00782064,240.19,240.15,14.027527]
[1732564218787,8.00782064,240.19,240.18,14.027527]
[1732564218966,7.05434717,240.19,240.12,14.027527]
[1732564219162,7.05434717,240.19,240.15,14.027527]
[1732564219572,7.05434717,240.19,240.12,14.027527]
[1732564219876,7.05434717,240.19,240.08,14.027527]
[1732564220078,20.0,240.12,240.03,14.027527]
[1732564220294,20.0,240.12,240.06,14.027527]
[1732564220703,20.0,240.12,240.07,14.027527]
[1732564220913,20.0,240.15,240.07,14.027527]
[1732564221271,20.0,240.15,240.08,14.027527]
[1732564221471,20.0,240.16,240.1,14.027527]
[1732564222690,20.0,240.16,240.08,14.027527]
[1732564222988,20.0,240.16,240.07,23.776884]
[1732564223569,20.0,240.16,240.1,14.027527]
[1732564224982,7.05434717,240.19,240.12,14.027527]
[1732564226185,7.05434717,240.19,240.14,14.027527]
[1732564226975,7.05434717,240.19,240.12,14.027527]
[1732564227886,20.0,240.16,240.12,14.027527]
[1732564228393,20.0,240.16,240.1,14.027527]
[1732564228695,20.0,240.16,240.12,14.027527]
[1732564229079,7.05434717,240.19,240.12,14.027527]
[1732564230696,7.05434717,240.19,240.11,23.776884]
[1732564230884,7.05434717,240.19,240.12,14.027527]
[1732564231302,7.05434717,240.19,240.14,14.027527]
[1732564231687,7.05434717,240.19,240.12,14.027527]
[1732564232089,7.05434717,240.19,240.1,14.027527]
[1732564232299,20.0,240.16,240.09,23.776884]
[1732564232799,20.0,240.16,240.06,8.74837179]
[1732564233005,20.0,240.16,239.94,30.4189]
[1732564233006,16.6574,240.15,240.04,8.74837179]
[1732564233301,20.0,240.12,240.04,8.74837179]
[1732564233489,20.0,240.12,239.97,4.1671]
[1732564233490,20.0,240.12,240.02,8.74837179]
[1732564233697,20.0,240.12,240.04,8.74837179]
[1732564234446,20.0,240.12,240.06,8.74837179]
[1732564235687,20.0,240.12,240.08,8.74837179]
[1732564235965,7.05434717,240.19,240.11,23.776884]
[1732564236104,7.05434717,240.19,240.12,8.74837179]
[1732564236298,7.05434717,240.19,240.11,23.776884]
[1732564236696,7.05434717,240.19,240.12,8.74837179]
[1732564238613,7.05434717,240.19,240.11,23.776884]
[1732564238791,7.05434717,240.19,240.1,8.74837179]
[1732564238995,20.0,240.16,240.08,8.74837179]
[1732564239506,20.0,240.16,240.07,23.776884]
[1732564239679,20.0,240.14,240.01,8.74837179]
[1732564239888,90.0,240.14,239.96,6.6379]
[1732564240095,20.0,240.1,239.97,8.74837179]
[1732564240602,20.0,240.1,239.99,8.74837179]
[1732564241314,20.0,240.1,240.0,23.776884]
[1732564241807,20.0,240.1,240.01,8.74837179]
[1732564242303,20.0,240.1,240.03,8.74837179]
[1732564244906,20.0,240.1,240.05,8.74837179]
[1732564245601,20.0,240.1,240.01,8.74837179]
[1732564245802,20.0,240.1,240.02,23.776884]
[1732564248423,20.0,240.1,240.05,8.74837179]
[1732564248904,20.0,240.1,240.03,8.74837179]
[1732564250810,20.0,240.1,240.05,8.74837179]
[1732564250991,15.2032,240.13,240.09,8.74837179]
[1732564251187,7.05434717,240.19,240.04,23.776884]
[1732564251188,22.67744717,240.19,240.06,8.74837179]
[1732564251518,70.0,240.18,240.04,23.776884]
[1732564252383,22.67744717,240.19,240.07,8.74837179]
[1732564253604,22.67744717,240.19,240.04,27.942784]
[1732564253605,20.0,240.16,240.05,8.74837179]
[1732564253782,20.0,240.16,240.06,23.776884]
[1732564254297,90.0,240.16,240.01,8.74837179]
[1732564254503,20.0,240.15,240.01,8.74837179]
[1732564254810,20.0,240.13,240.03,8.74837179]
[1732564255113,20.0,240.13,240.01,8.74837179]
[1732564255785,20.0,240.13,239.96,6.6379]
[1732564255786,90.0,240.13,239.97,8.74837179]
[1732564256108,20.0,240.08,239.97,8.74837179]
[1732564257109,20.0,240.08,239.98,23.776884]
[1732564259429,20.0,240.08,239.99,8.74837179]
[1732564259997,20.0,240.06,239.95,8.74837179]
[1732564260504,20.0,240.06,239.93,8.74837179]
[1732564260914,20.0,240.06,239.95,8.74837179]
[1732564261723,20.0,240.06,239.96,23.776884]
[1732564264217,20.0,240.06,239.99,8.74837179]
[1732564264413,6.6141,240.09,240.01,8.74837179]
[1732564264623,15.0368,240.11,240.01,8.74837179]
[1732564264833,15.0368,240.11,240.03,8.74837179]
[1732564265329,15.0368,240.11,240.05,8.74837179]
[1732564265510,15.0368,240.11,240.03,8.74837179]
[1732564265701,15.0368,240.11,240.01,8.74837179]
[1732564266401,6.2233,240.14,240.05,8.74837179]
[1732564267230,16.2034,240.16,240.05,8.74837179]
[1732564267523,16.2034,240.16,240.07,8.74837179]
[1732564267742,16.2034,240.16,240.08,23.776884]
[1732564268506,16.2034,240.16,240.09,8.74837179]
[1732564269231,16.2034,240.16,240.08,23.776884]
[1732564269232,16.2034,240.16,240.11,8.74837179]
[1732564269729,16.2034,240.16,240.08,23.776884]
[1732564270033,16.2034,240.16,240.06,23.776884]
[1732564270034,19.93230107,240.13,240.06,23.776884]
[1732564270325,16.2034,240.16,240.07,8.74837179]
[1732564270743,16.2034,240.16,240.01,8.74837179]
[1732564271096,80.0,240.14,239.96,8.74837179]
[1732564271957,20.0,240.07,239.94,8.74837179]
[1732564273519,20.0,240.02,239.94,8.74837179]
[1732564274429,30.0,240.0,239.95,23.776884]
[1732564277310,30.0,240.0,239.96,8.74837179]
[1732564277733,30.0,240.0,239.94,8.74837179]
[1732564277931,30.0,240.0,239.93,23.776884]
[1732564278235,20.0,239.96,239.89,8.74837179]
[1732564278411,30.0,239.95,239.89,8.74837179]
[1732564279474,30.0,239.95,239.91,8.74837179]
[1732564280141,20.0,240.02,239.94,8.74837179]
[1732564280316,16.6168,240.05,239.98,8.74837179]
[1732564280637,30.0,239.99,239.98,8.74837179]
[1732564281418,30.0,239.99,239.98,32.52525579]
[1732564282125,20.0,240.07,239.98,32.52525579]
[1732564282534,16.232,240.11,240.04,8.74837179]
[1732564283029,30.0,240.05,240.04,8.74837179]
[1732564283253,30.0,240.05,240.04,32.52525579]
[1732564283816,6.6228,240.16,240.04,32.52525579]
[1732564284521,20.0,240.13,240.02,8.74837179]
[1732564285030,20.0,240.13,240.03,23.776884]
[1732564285460,20.0,240.13,240.02,8.74837179]
[1732564286641,20.0,240.13,240.04,8.74837179]
[1732564287436,20.0,240.13,240.02,8.74837179]
[1732564287733,30.0,240.05,240.0,8.74837179]
[1732564287941,30.0,240.05,239.98,8.74837179]
[1732564288243,30.0,240.05,239.99,23.776884]
[1732564288430,30.0,240.05,239.98,8.74837179]
[1732564288737,30.0,240.05,239.96,8.74837179]
[1732564289044,20.0,240.02,239.97,23.776884]
[1732564289241,30.0,240.05,239.97,23.776884]
[1732564289540,30.0,240.01,240.0,8.74837179]
[1732564289837,30.0,240.01,239.99,23.776884]
[1732564290011,206.56317076,240.15,239.99,23.776884]
[1732564290339,20.0,240.12,239.99,23.776884]
[1732564291019,20.0,240.12,240.0,8.74837179]
[1732564291223,20.0,240.12,239.98,8.74837179]
[1732564291528,20.0,240.12,240.0,8.74837179]
[1732564291918,72.06317076,240.15,240.0,8.74837179]
[1732564291919,20.0,240.13,240.0,8.74837179]
[1732564292136,20.0,240.13,240.01,23.776884]
[1732564292461,6.6228,240.16,240.02,8.74837179]
[1732564292540,6.6228,240.16,240.03,23.776884]
[1732564292749,6.6228,240.16,240.02,8.74837179]
[1732564293122,30.0,240.04,240.02,8.74837179]
[1732564293313,30.0,240.04,240.01,23.776884]
[1732564293541,30.0,240.04,240.0,8.74837179]
[1732564293719,30.0,240.04,240.02,8.74837179]
[1732564294243,30.0,240.04,240.03,23.776884]
[1732564294846,16.0877,240.17,240.03,23.776884]
[1732564295023,16.0877,240.17,240.08,8.74837179]
[1732564295221,30.0,240.09,240.08,32.52525579]
[1732564297343,20.0,240.14,240.08,32.52525579]
[1732564298266,20.0,240.14,240.07,23.776884]
[1732564300133,20.0,240.14,240.06,8.74837179]
[1732564300329,30.0,240.08,240.07,23.776884]
[1732564300541,30.0,240.08,240.07,32.52525579]
[1732564301834,20.0,240.14,240.08,23.776884]
[1732564302035,30.0,240.09,240.08,23.776884]
[1732564303336,20.0,240.14,240.08,23.776884]
[1732564305451,20.0,240.14,240.05,8.74837179]
[1732564305636,30.0,240.08,240.06,23.776884]
[1732564309663,30.0,240.08,240.07,32.52525579]
[1732564309995,17.15977598,240.19,240.08,23.776884]
[1732564309996,20.0,240.16,240.08,23.776884]
[1732564310147,30.0,240.09,240.08,23.776884]
[1732564310345,30.0,240.09,240.08,30.080684]
[1732564310669,17.15977598,240.19,240.09,23.776884]
[1732564310839,17.15977598,240.19,240.15,8.74837179]
[1732564311268,86.3814,240.31,240.17,8.74837179]
[1732564311472,30.0,240.18,240.17,32.52525579]
[1732564313683,18.4611107,240.31,240.17,32.52525579]
[1732564313684,20.0,240.28,240.18,23.776884]
[1732564313968,16.3814,240.31,240.23,8.74837179]
[1732564314136,30.0,240.24,240.23,32.52525579]
[1732564314769,30.0,240.24,240.23,41.27362758]
[1732564314993,10.09797014,240.37,240.23,57.28502758]
[1732564315164,10.09797014,240.37,240.3,8.74837179]
[1732564315368,30.0,240.31,240.3,32.52525579]
[1732564319558,10.09797014,240.37,240.31,23.776884]
[1732564319774,20.0,240.41,240.34,8.74837179]
[1732564319946,20.0,240.41,240.38,8.74837179]
[1732564320141,15.6306,240.5,240.38,8.74837179]
[1732564320386,15.6306,240.5,240.4,8.74837179]
[1732564322793,20.0,240.47,240.4,8.74837179]
[1732564323451,10.09224566,240.51,240.44,8.74837179]
[1732564324167,10.09224566,240.51,240.46,8.74837179]
[1732564324380,16.3774,240.56,240.49,8.74837179]
[1732564325082,16.3774,240.56,240.43,6.26]
[1732564325083,16.17795993,240.63,240.5,8.74837179]
[1732564325257,15.8714,240.62,240.51,8.74837179]
[1732564325955,15.8714,240.62,240.53,8.74837179]
[1732564326164,10.15825993,240.63,240.56,8.74837179]
[1732564326358,10.15825993,240.63,240.52,8.74837179]
[1732564326681,20.15825993,240.63,240.47,23.776884]
[1732564326875,70.0,240.6,240.44,8.74837179]
[1732564327096,70.0,240.57,240.36,6.26]
[1732564327260,70.0,240.57,240.39,8.74837179]
[1732564327651,90.0,240.54,240.37,8.74837179]
[1732564328885,10.0,240.58,240.35,8.74837179]
[1732564328886,20.0,240.48,240.35,8.74837179]
[1732564329490,20.0,240.51,240.37,8.74837179]
[1732564329886,20.0,240.51,240.3,10.2397]
[1732564329887,20.0,240.46,240.3,6.0783]
[1732564330072,20.0,240.42,240.3,8.74837179]
[1732564330382,20.0,240.42,240.3,13.97173366]
[1732564330691,20.0,240.42,240.28,13.97173366]
[1732564331997,20.0,240.42,240.29,23.776884]
[1732564332276,20.0,240.42,240.26,13.97173366]
[1732564332277,90.0,240.42,240.26,13.97173366]
[1732564332457,20.0,240.4,240.24,20.15373366]
[1732564332684,20.0,240.39,240.26,13.97173366]
[1732564333289,20.0,240.42,240.28,13.97173366]
[1732564333516,20.0,240.42,240.26,13.97173366]
[1732564333652,90.0,240.42,240.27,23.776884]
[1732564333870,20.0,240.39,240.25,23.776884]
[1732564334187,20.0,240.39,240.26,13.97173366]
[1732564334482,20.0,240.39,240.27,23.776884]
[1732564334660,20.0,240.39,240.26,13.97173366]
[1732564334855,20.0,240.39,240.24,13.97173366]
[1732564335061,20.0,240.39,240.25,23.776884]
[1732564335893,20.0,240.35,240.25,23.776884]
[1732564336687,20.0,240.33,240.22,13.97173366]
[1732564336979,20.0,240.33,240.26,13.97173366]
[1732564338458,20.0,240.33,240.15,35.1111]
[1732564338459,20.0,240.33,240.15,15.1111]
[1732564338836,90.0,240.33,240.15,13.97173366]
[1732564339107,36.359,240.26,240.11,13.97173366]
[1732564339464,36.359,240.26,240.13,13.97173366]
[1732564339668,36.359,240.26,240.11,13.97173366]
[1732564339986,36.359,240.26,240.17,13.97173366]
[1732564340378,35.8317,240.32,240.17,13.97173366]
[1732564340566,105.8317,240.32,240.18,23.776884]
[1732564340764,35.8317,240.32,240.17,13.97173366]
[1732564340967,35.8317,240.32,240.2,23.776884]
[1732564341292,35.8317,240.32,240.18,23.776884]
[1732564341293,15.8317,240.32,240.23,13.97173366]
[1732564341580,6.0638,240.36,240.23,13.97173366]
[1732564342008,70.0,240.32,240.17,13.97173366]
[1732564342284,70.0,240.32,240.15,13.97173366]
[1732564342477,35.8879,240.26,240.15,13.97173366]
[1732564342687,35.8879,240.26,240.17,13.97173366]
[1732564342877,20.0,240.29,240.21,13.97173366]
[1732564343276,20.0,240.29,240.19,13.97173366]
[1732564343405,20.0,240.29,240.18,23.776884]
[1732564343692,20.0,240.29,240.19,13.97173366]
[1732564344170,15.8879,240.32,240.25,13.97173366]
[1732564344398,15.8879,240.32,240.23,13.97173366]
[1732564344576,15.8879,240.32,240.22,23.776884]
[1732564344803,15.8879,240.32,240.25,13.97173366]
[1732564345172,6.0638,240.36,240.25,13.97173366]
[1732564345599,20.0,240.33,240.24,23.776884]
[1732564345978,20.0,240.33,240.21,13.97173366]
[1732564346169,20.0,240.33,240.23,13.97173366]
[1732564346378,20.0,240.33,240.25,13.97173366]
[1732564346569,20.0,240.33,240.24,23.776884]
[1732564346875,20.0,240.33,240.25,13.97173366]
[1732564347079,20.0,240.33,240.21,13.97173366]
[1732564347289,20.0,240.33,240.13,15.2097]
[1732564347476,20.0,240.33,240.19,13.97173366]
[1732564347696,90.0,240.33,240.16,23.776884]
[1732564347892,70.0,240.3,240.15,13.97173366]
[1732564348103,20.0,240.27,240.19,13.97173366]
[1732564348607,20.0,240.31,240.19,13.97173366]
[1732564349780,20.0,240.31,240.21,13.97173366]
[1732564350099,20.0,240.31,240.17,13.97173366]
[1732564350408,20.0,240.31,240.17,8.74156214]
[1732564350583,20.0,240.31,240.18,23.776884]
[1732564351599,20.0,240.31,240.19,8.74156214]
[1732564353400,20.0,240.33,240.19,8.74156214]
[1732564354016,20.0,240.33,240.21,8.74156214]
[1732564354792,210.5638,240.36,240.21,8.74156214]
[1732564356301,20.0,240.33,240.21,8.74156214]
[1732564359908,20.0,240.33,240.19,8.74156214]
[1732564360097,90.0,240.33,240.17,32.51844614]
[1732564360402,90.0,240.33,240.19,8.74156214]
[1732564360902,20.0,240.33,240.19,8.74156214]
[1732564361213,20.0,240.33,240.21,8.74156214]
[1732564363106,20.0,240.33,240.2,23.776884]
[1732564363311,20.0,240.33,240.17,32.51844614]
[1732564364312,20.0,240.33,240.19,8.74156214]
[1732564364604,20.0,240.33,240.2,23.776884]
[1732564366938,20.0,240.33,240.21,8.74156214]
[1732564367603,20.0,240.33,240.19,32.51844614]
[1732564367838,20.0,240.33,240.21,8.74156214]
[1732564368404,20.0,240.33,240.19,32.51844614]
[1732564372913,20.0,240.33,240.21,8.74156214]
[1732564375563,6.0638,240.36,240.25,8.74156214]
[1732564375572,6.0638,240.36,240.22,23.776884]
[1732564375573,6.0638,240.36,240.27,8.74156214]
[1732564376141,16.4192,240.38,240.27,8.74156214]
[1732564376831,16.4192,240.38,240.29,8.74156214]
[1732564377914,16.4192,240.38,240.27,8.74156214]
[1732564378704,20.0,240.35,240.27,8.74156214]
[1732564380018,30.0,240.29,240.27,8.74156214]
[1732564381410,20.0,240.35,240.27,8.74156214]
[1732564381928,20.0,240.35,240.28,23.776884]
[1732564382108,20.0,240.35,240.29,8.74156214]
[1732564382506,16.4192,240.38,240.31,8.74156214]
[1732564382856,16.5374,240.45,240.37,8.74156214]
[1732564383038,23.04618243,240.51,240.41,8.74156214]
[1732564383254,16.5374,240.51,240.41,8.74156214]
[1732564383406,16.5374,240.51,240.36,8.74156214]
[1732564383407,16.5374,240.51,240.43,8.74156214]
[1732564383731,16.5374,240.51,240.3,16.5295]
[1732564383732,16.5374,240.51,240.38,23.776884]
[1732564384121,86.5374,240.51,240.37,8.74156214]
[1732564384562,30.0,240.43,240.37,8.74156214]
[1732564385338,30.0,240.43,240.35,8.74156214]
[1732564385527,30.0,240.43,240.36,23.776884]
[1732564386025,30.0,240.43,240.35,8.74156214]
[1732564387507,30.0,240.43,240.31,4.1611]
[1732564387727,30.0,240.43,240.28,8.74156214]
[1732564387728,20.0,240.4,240.28,8.74156214]
[1732564387915,30.0,240.38,240.28,8.74156214]
[1732564388311,20.0,240.35,240.26,8.74156214]
[1732564388726,20.0,240.35,240.24,30.53506214]
[1732564388948,30.0,240.34,240.24,8.74156214]
[1732564390613,30.0,240.34,240.25,23.776884]
[1732564391330,30.0,240.34,240.2,4.163]
[1732564391531,20.0,240.31,240.24,23.776884]
[1732564391829,30.0,240.29,240.24,23.776884]
[1732564392155,30.0,240.29,240.23,8.74156214]
[1732564392390,30.0,240.29,240.21,8.74156214]
[1732564393421,30.0,240.29,240.23,8.74156214]
[1732564393716,30.0,240.29,240.25,8.74156214]
[1732564394122,30.0,240.29,240.23,8.74156214]
[1732564394602,30.0,240.29,240.24,23.776884]
[1732564394842,30.0,240.29,240.21,8.74156214]
[1732564395268,30.0,240.29,240.22,23.776884]
[1732564397573,30.0,240.29,240.21,8.74156214]
[1732564397847,20.0,240.26,240.17,8.74156214]
[1732564398049,30.0,240.25,240.17,8.74156214]
[1732564399444,30.0,240.25,240.19,8.74156214]
[1732564399750,30.0,240.25,240.16,23.776884]
[1732564399751,30.0,240.25,240.23,8.74156214]
[1732564401044,30.0,240.25,240.24,23.776884]
[1732564401445,15.9521,240.35,240.24,23.776884]
[1732564401636,15.9521,240.35,240.27,8.74156214]
[1732564401844,15.9521,240.35,240.25,8.74156214]
[1732564402137,15.9521,240.35,240.26,23.776884]
[1732564403226,15.9521,240.35,240.25,8.74156214]
[1732564403466,30.0,240.28,240.25,8.74156214]
[1732564403630,30.0,240.28,240.23,8.74156214]
[1732564405635,30.0,240.28,240.25,8.74156214]
[1732564408643,30.0,240.28,240.27,32.51844614]
[1732564409349,15.3996,240.41,240.28,23.776884]
[1732564409658,15.3996,240.41,240.29,8.74156214]
[1732564410344,20.0,240.38,240.29,8.74156214]
[1732564411937,20.0,240.38,240.3,32.51844614]
[1732564412133,15.3996,240.41,240.32,8.74156214]
[1732564412453,30.0,240.33,240.32,8.74156214]
[1732564413056,30.0,240.33,240.3,32.51844614]
[1732564413348,30.0,240.33,240.28,32.51844614]
[1732564414755,20.0,240.38,240.28,32.51844614]
[1732564415501,20.0,240.38,240.3,8.74156214]
[1732564416948,20.0,240.38,240.29,23.776884]
[1732564417151,20.0,240.38,240.26,8.74156214]
[1732564417528,20.0,240.38,240.27,23.776884]
[1732564417763,30.0,240.32,240.27,23.776884]
[1732564418345,30.0,240.32,240.28,8.74156214]
[1732564419354,30.0,240.32,240.26,8.74156214]
[1732564423042,30.0,240.32,240.24,32.51844614]
[1732564423269,30.0,240.32,240.26,8.74156214]
[1732564423440,30.0,240.32,240.28,8.74156214]
[1732564423643,30.0,240.32,240.31,23.776884]
[1732564424344,30.0,240.32,240.31,29.36410061]
[1732564424557,15.3996,240.41,240.31,29.36410061]
[1732564425458,15.624,240.47,240.35,5.58721661]
[1732564425664,30.0,240.36,240.33,5.58721661]
[1732564426265,30.0,240.36,240.31,27.938084]
[1732564426454,30.0,240.36,240.33,8.72939045]
[1732564426640,30.0,240.36,240.35,8.72939045]
[1732564427043,30.0,240.36,240.35,32.50627445]
[1732564427551,30.0,240.36,240.33,8.72939045]
[1732564427754,30.0,240.36,240.31,32.50627445]
[1732564428477,20.0,240.44,240.31,32.50627445]
[1732564429456,30.0,240.35,240.31,32.50627445]
[1732564431343,30.0,240.35,240.3,8.72939045]
[1732564432204,30.0,240.35,240.26,8.72939045]
[1732564432976,30.0,240.35,240.24,8.72939045]
[1732564433349,30.0,240.35,240.25,8.72939045]
[1732564434270,30.0,240.35,240.27,8.72939045]
[1732564435796,20.0,240.34,240.27,8.72939045]
[1732564437278,30.0,240.32,240.27,8.72939045]
[1732564437483,30.0,240.32,240.24,23.776884]
[1732564438401,30.0,240.32,240.22,23.776884]
[1732564439087,30.0,240.32,240.21,12.89239045]
[1732564439254,30.0,240.32,240.21,8.72939045]
[1732564440397,30.0,240.32,240.22,23.776884]
[1732564440560,20.0,240.29,240.22,23.776884]
[1732564440769,30.0,240.27,240.18,22.3625]
[1732564440974,20.0,240.24,240.12,15.39479045]
[1732564441310,20.0,240.24,240.1,4.1647]